lending/lending_fUSD_20240605
["ID","MTS","AMOUNT","RATE_DAILY","PERIOD"]
[328620542,1717620638526,-500.0,0.00029897,4]
[328620543,1717620638535,-505.14702688,0.00029897,4]
[328620544,1717620638545,-509.97659285,0.00029897,4]
[328620545,1717620638555,-500.0,0.00029897,4]
[328620546,1717620638564,-628.01,0.00029897,4]
[328620547,1717620638574,-500.0,0.00029897,4]
[328620548,1717620638583,-500.0,0.00029897,4]
[328620549,1717620638592,-534.45381895,0.00029897,4]
[328620550,1717620638604,-503.32605034,0.00029897,4]
[328620551,1717620638613,-508.73776716,0.00029897,4]
[328620552,1717620638622,-500.0,0.00029897,4]
[328620553,1717620638632,-621.6,0.00029897,4]
[328620554,1717620638641,-500.0,0.00029897,4]
[328620555,1717620638650,-290.15223254,0.00029897,4]
[328620556,1717620638660,-182.62656329,0.00029897,4]
[328620557,1717620638669,-605.85161613,0.00029897,4]
[328620558,1717620638678,-500.0,0.00029897,4]
[328620559,1717620638688,-500.0,0.00029897,4]
[328620560,1717620638697,-636.54,0.00029897,4]
[328620561,1717620638707,-589.97141316,0.00029897,4]
[328620562,1717620638716,-507.74712272,0.00029897,4]
[328620563,1717620638726,-500.0,0.00029897,4]
[328620564,1717620638735,-329.59,0.00029897,4]
[328620565,1717620638744,-506.606653,0.00029897,4]
[328620566,1717620638754,-500.0,0.00029897,4]
[328620567,1717620638763,-447.5,0.00029897,4]
[328620568,1717620638774,-510.89493033,0.00029897,4]
[328620569,1717620638784,-500.0,0.00029897,4]
[328620570,1717620638795,-500.0,0.00029897,4]
[328620571,1717620638804,-500.0,0.00029897,4]
[328620572,1717620638814,-500.0,0.00029897,4]
[328620573,1717620638823,-374.62967567,0.00029897,4]
[328620574,1717620638836,-505.93110381,0.00029897,4]
[328620575,1717620638845,-505.55167226,0.00029897,4]
[328620576,1717620638855,-500.0,0.00029897,4]
[328620577,1717620638865,-507.99890892,0.00029897,4]
[328620578,1717620638875,-500.0,0.00029897,4]
[328620579,1717620638884,-251.33886643,0.00029897,4]
[328620580,1717620638894,-200.73,0.00029897,4]
[328620581,1717620638904,-505.6036985,0.00029897,4]
[328620582,1717620638914,-500.0,0.00029897,4]
[328620583,1717620638924,-500.0,0.00029897,4]
[328620584,1717620638933,-500.0,0.00029897,4]
[328620585,1717620638943,-500.0,0.00029897,4]
[328620586,1717620638952,-504.97549672,0.00029897,4]
[328620587,1717620638961,-504.71016272,0.00029897,4]
[328620588,1717620638971,-508.0586487,0.00029897,4]
[328620589,1717620638981,-608.4516793,0.00029897,4]
[328620590,1717620638990,-417.02640962,0.00029897,4]
[328620591,1717620639000,-505.61065715,0.00029897,4]
[328620592,1717620639009,-503.15265123,0.00029897,4]
[328620593,1717620639019,-500.0,0.00029897,4]
[328620594,1717620639030,-500.0,0.00029897,4]
[328620595,1717620639039,-1193.22,0.00029897,4]
[328620596,1717620639048,-1193.22,0.00029897,4]
[328620597,1717620639057,-500.0,0.00029897,4]
[328620598,1717620639066,-500.0,0.00029897,4]
[328620599,1717620639075,-594.61381904,0.00029897,4]
[328620600,1717620639085,-502.56918681,0.00029897,4]
[328620601,1717620639095,-503.62510892,0.00029897,4]
[328620602,1717620639104,-506.57085327,0.00029897,4]
[328620603,1717620639113,-503.68225116,0.00029897,4]
[328620604,1717620639123,-500.0,0.00029897,4]
[328620605,1717620639133,-487.33525707,0.00029897,4]
[328620606,1717620639142,-500.0,0.00029897,4]
[328620607,1717620639152,-500.0,0.00029897,4]
[328620608,1717620639162,-504.41261409,0.00029897,4]
[328620609,1717620639172,-500.0,0.00029897,4]
[328620610,1717620639182,-279.81,0.00029897,4]
[328620611,1717620639192,-500.0,0.00029897,4]
[328620612,1717620639202,-500.0,0.00029897,4]
[328620613,1717620639212,-500.0,0.00029897,4]
[328620614,1717620639221,-156.08,0.00029897,4]
[328620615,1717620639232,-500.0,0.00029897,4]
[328620616,1717620639242,-353.87,0.00029897,4]
[328620617,1717620639253,-502.60475015,0.00029897,4]
[328620618,1717620639263,-505.59922765,0.00029897,4]
[328620619,1717620639273,-503.21,0.00029897,4]
[328620620,1717620639282,-500.8678682,0.00029897,4]
[328620621,1717620639292,-500.0,0.00029897,4]
[328620622,1717620639301,-157.43824618,0.00029897,4]
[328620623,1717620639311,-500.0,0.00029897,4]
[328620624,1717620639320,-500.0,0.00029897,4]
[328620625,1717620639331,-507.37592385,0.00029897,4]
[328620626,1717620639340,-500.0,0.00029897,4]
[328620627,1717620639350,-503.88428547,0.00029897,4]
[328620628,1717620639360,-500.0,0.00029897,4]
[328620629,1717620639369,-500.0,0.00029897,4]
[328620630,1717620639379,-500.0,0.00029897,4]
[328620631,1717620639389,-500.0,0.00029897,4]
[328620632,1717620639398,-213.37,0.00029897,4]
[328620633,1717620639408,-500.0,0.00029897,4]
[328620634,1717620639418,-499.33769645,0.00029897,4]
[328620635,1717620639428,-516.47,0.00029897,4]
[328620636,1717620639437,-504.55632283,0.00029897,4]
[328620637,1717620639447,-503.44677586,0.00029897,4]
[328620638,1717620639456,-500.0,0.00029897,4]
[328620640,1717620639466,-504.00872776,0.00029897,4]
[328620642,1717620639476,-155.55,0.00029897,4]
[328620643,1717620639486,-500.0,0.00029897,4]
[328620644,1717620639496,-606.67,0.00029897,4]
[328620645,1717620639506,-109.16974793,0.00029897,4]
[328620648,1717620639681,-291.44373864,0.00029897,4]
[328620649,1717620639733,-1.24462942,0.00029869,2]
[328620650,1717620639796,-325.40703263,0.00029869,2]
[328620651,1717620639808,-111.60158983,0.00029869,2]
[328620652,1717620639818,-99.38651343,0.00029897,4]
[328620653,1717620639828,-500.0,0.00029897,4]
[328620654,1717620639841,-339.01189674,0.00029897,4]
[328620655,1717620639853,-299.89089413,0.00029897,4]
[328620656,1717620639863,-500.0,0.00029897,4]
[328620657,1717620639875,-331.39797717,0.00029897,4]
[328620658,1717620639885,-500.0,0.00029897,4]
[328620659,1717620639895,-219.21,0.00029897,4]
[328620660,1717620639904,-508.40891434,0.00029897,4]
[328620661,1717620639915,-507.11161375,0.00029897,4]
[328620662,1717620639925,-500.0,0.00029897,4]
[328620663,1717620639935,-500.0,0.00029897,4]
[328620664,1717620639945,-500.0,0.00029897,4]
[328620665,1717620639955,-500.0,0.00029897,4]
[328620666,1717620639965,-511.99880465,0.00029897,4]
[328620667,1717620639975,-504.84594369,0.00029897,4]
[328620668,1717620639985,-636.91,0.00029897,4]
[328620669,1717620639994,-636.91,0.00029897,4]
[328620670,1717620640004,-506.93790233,0.00029897,4]
[328620671,1717620640015,-506.67524104,0.00029897,4]
[328620672,1717620640025,-505.87938074,0.00029897,4]
[328620673,1717620640035,-503.63046616,0.00029897,4]
[328620674,1717620640045,-514.7344536,0.00029897,4]
[328620675,1717620640054,-500.0,0.00029897,4]
[328620676,1717620640064,-500.0,0.00029897,4]
[328620677,1717620640074,-500.0,0.00029897,4]
[328620678,1717620640083,-279.18,0.00029897,4]
[328620679,1717620640093,-500.0,0.00029897,4]
[328620680,1717620640103,-508.90191049,0.00029897,4]
[328620681,1717620640113,-500.0,0.00029897,4]
[328620682,1717620640122,-552.2,0.00029897,4]
[328620683,1717620640132,-542.49,0.00029897,4]
[328620684,1717620640142,-1985.87,0.00029897,4]
[328620685,1717620640152,-604.04,0.00029897,4]
[328620686,1717620640162,-1985.87,0.00029897,4]
[328620687,1717620640172,-503.57045392,0.00029897,4]
[328620688,1717620640182,-500.0,0.00029897,4]
[328620689,1717620640191,-500.0,0.00029897,4]
[328620690,1717620640202,-565.45,0.00029897,4]
[328620691,1717620640211,-500.0,0.00029897,4]
[328620692,1717620640221,-500.0,0.00029897,4]
[328620693,1717620640230,-258.82,0.00029897,4]
[328620694,1717620640241,-549.19,0.00029897,4]
[328620695,1717620640250,-549.19,0.00029897,4]
[328620696,1717620640260,-500.0,0.00029897,4]
[328620697,1717620640269,-500.0,0.00029897,4]
[328620698,1717620640280,-502.26066222,0.00029897,4]
[328620699,1717620640289,-500.0,0.00029897,5]
[328620700,1717620640299,-505.74696654,0.00029897,4]
[328620701,1717620640308,-500.0,0.00029897,4]
[328620702,1717620640318,-254.4271975,0.00029897,4]
[328620703,1717620640331,-245.5728025,0.00029897,4]
[328620705,1717620640340,-617.79,0.00029897,4]
[328620706,1717620640350,-500.0,0.00029897,4]
[328620708,1717620640360,-500.0,0.00029897,4]
[328620709,1717620640370,-500.0,0.00029897,4]
[328620710,1717620640379,-500.0,0.00029897,4]
[328620711,1717620640389,-500.0,0.00029897,4]
[328620712,1717620640399,-500.0,0.00029897,4]
[328620713,1717620640408,-309.52268763,0.00029897,4]
[328620715,1717620640418,-500.0,0.00029897,4]
[328620717,1717620640427,-500.0,0.00029897,4]
[328620719,1717620640437,-500.0,0.00029897,4]
[328620722,1717620640447,-500.0,0.00029897,4]
[328620724,1717620640456,-246.33776145,0.00029897,4]
[328620726,1717620640466,-500.0,0.00029897,4]
[328620728,1717620640477,-500.0,0.00029897,4]
[328620730,1717620640486,-500.0,0.00029897,4]
[328620732,1717620640496,-500.0,0.00029897,4]
[328620734,1717620640505,-500.0,0.00029897,4]
[328620735,1717620640515,-500.0,0.00029897,4]
[328620738,1717620640525,-808.3,0.00029897,4]
[328620740,1717620640535,-808.3,0.00029897,4]
[328620742,1717620640545,-500.0,0.00029897,4]
[328620743,1717620640554,-500.0,0.00029897,4]
[328620745,1717620640564,-568.28507955,0.00029897,4]
[328620748,1717620640575,-515.19593597,0.00029897,4]
[328620750,1717620640584,-500.0,0.00029897,4]
[328620752,1717620640594,-500.0,0.00029897,4]
[328620754,1717620640604,-502.09296921,0.00029897,4]
[328620756,1717620640613,-500.0,0.00029897,4]
[328620758,1717620640623,-223.10454774,0.00029897,4]
[328620760,1717620640632,-500.0,0.00029897,4]
[328620762,1717620640642,-501.35127195,0.00029897,4]
[328620764,1717620640652,-505.56805949,0.00029897,4]
[328620766,1717620640662,-500.0,0.00029897,4]
[328620768,1717620640671,-500.0,0.00029897,4]
[328620770,1717620640681,-500.0,0.00029897,4]
[328620772,1717620640691,-188.05,0.00029897,4]
[328620773,1717620640700,-500.0,0.00029897,4]
[328620774,1717620640710,-500.0,0.00029897,4]
[328620775,1717620640719,-503.39830871,0.00029897,4]
[328620776,1717620640728,-500.0,0.00029897,4]
[328620777,1717620640738,-500.0,0.00029897,4]
[328620778,1717620640748,-500.0,0.00029897,4]
[328620779,1717620640758,-500.0,0.00029897,4]
[328620780,1717620640768,-502.84047409,0.00029897,4]
[328620781,1717620640778,-500.0,0.00029897,4]
[328620782,1717620640788,-500.0,0.00029897,4]
[328620783,1717620640798,-500.0,0.00029897,4]
[328620784,1717620640807,-344.86352534,0.00029897,4]
[328620785,1717620640817,-516.06782439,0.00029897,4]
[328620786,1717620640828,-500.0,0.00029897,4]
[328620787,1717620640842,-600.94,0.00029897,4]
[328620788,1717620640851,-600.94,0.00029897,4]
[328620789,1717620640861,-500.0,0.00029897,4]
[328620790,1717620640871,-501.5801731,0.00029897,4]
[328620791,1717620640881,-30720.00118867,0.00029898,2]
[328620792,1717620641025,-265.85210799,0.00028999,2]
[328620793,1717620641035,-164.22374813,0.00029896,2]
[328620794,1717620641044,-501.89960353,0.00029897,4]
[328620795,1717620641054,-1976.87241943,0.00029898,2]
[328620796,1717620641077,-0.00928567,0.00029898,2]
[328620797,1717620641165,-4972.94437514,0.00029898,2]
[328620798,1717620641180,-8457.8385981,0.00029898,2]
[328620799,1717620641191,-2098.84205451,0.00029898,2]
[328620800,1717620641402,-713.68646057,0.00025,2]
[328620801,1717620641411,-164.22374807,0.00029897,2]
[328620802,1717620641420,-89.01479134,0.00029897,4]
[328620803,1717620641432,-413.7332465,0.00029897,4]
[328620804,1717620641441,-346.27714391,0.00029898,2]
[328620805,1717620641452,-1058.18044309,0.00029898,2]
[328620806,1717620641466,-31246.00333345,0.00029898,2]
[328620807,1717620641478,-33430.49795803,0.00029898,2]
[328620808,1717620641487,-17612.0623,0.00029898,2]
[328620809,1717620641496,-533.3386,0.00029898,2]
[328620810,1717620641506,-179.72498409,0.00029899,2]
[328620811,1717620641516,-346.8852578,0.00029899,2]
[328620812,1717620641525,-500.0,0.00029899,4]
[328620813,1717620641535,-500.0,0.00029899,4]
[328620814,1717620641543,-2799.44,0.00029899,4]
[328620815,1717620641554,-500.0,0.00029899,4]
[328620816,1717620641563,-1037.22,0.00029899,4]
[328620817,1717620641572,-417.06,0.00029899,4]
[328620818,1717620641581,-43286.7092808,0.000299,2]
[328620819,1717620641590,-2247.36126855,0.000299,3]
[328620820,1717620641600,-1574.70455312,0.000299,15]
[328620821,1717620641609,-150.0,0.000299,6]
[328620822,1717620641618,-2686.90659924,0.000299,2]
[328620823,1717620641628,-5000.0,0.00029939,2]
[328620824,1717620641637,-161.12785512,0.00029962,2]
[328620825,1717620641647,-5000.0,0.00029968,2]
[328620826,1717620641656,-420.71278227,0.00029971,2]
[328620827,1717620641665,-1000.0,0.0002999,2]
[328620828,1717620641674,-1000.0,0.0002999,2]
[328620829,1717620641683,-1000.0,0.0002999,2]
[328620830,1717620641693,-1000.0,0.0002999,2]
[328620831,1717620641703,-1000.0,0.0002999,2]
[328620832,1717620641715,-1000.0,0.0002999,2]
[328620833,1717620641726,-1000.0,0.0002999,2]
[328620834,1717620641737,-1000.0,0.0002999,2]
[328620835,1717620641746,-1000.0,0.0002999,2]
[328620836,1717620641755,-1000.0,0.0002999,2]
[328620837,1717620641766,-1368.5134193,0.00029992,2]
[328620838,1717620641776,-841.9594595,0.00029992,2]
[328620839,1717620641785,-866.0136287,0.00029992,2]
[328620840,1717620641794,-500.0,0.00029994,4]
[328620841,1717620641803,-500.0,0.00029994,4]
[328620842,1717620641812,-500.0,0.00029994,4]
[328620843,1717620641821,-500.0,0.00029994,4]
[328620844,1717620641832,-500.0,0.00029995,4]
[328620845,1717620641846,-500.0,0.00029995,4]
[328620846,1717620641855,-500.0,0.00029995,4]
[328620847,1717620641864,-500.0,0.00029995,4]
[328620848,1717620641875,-500.0,0.00029995,4]
[328620849,1717620641884,-500.0,0.00029995,4]
[328620850,1717620641894,-500.0,0.00029995,4]
[328620851,1717620641903,-500.0,0.00029995,4]
[328620852,1717620641914,-500.0,0.00029995,4]
[328620853,1717620641923,-500.0,0.00029995,4]
[328620854,1717620641932,-500.0,0.00029995,4]
[328620855,1717620641941,-500.0,0.00029995,4]
[328620856,1717620641951,-567.0,0.00029995,4]
[328620857,1717620641960,-597.99,0.00029995,4]
[328620858,1717620641970,-500.0,0.00029995,4]
[328620859,1717620641979,-500.0,0.00029995,4]
[328620860,1717620641988,-166.59,0.00029995,4]
[328620861,1717620641997,-500.0,0.00029995,4]
[328620862,1717620642007,-489.80679342,0.00029995,4]
[328620863,1717620642016,-500.0,0.00029995,4]
[328620864,1717620642026,-500.0,0.00029995,4]
[328620865,1717620642035,-611.45,0.00029995,4]
[328620866,1717620642044,-500.0,0.00029995,4]
[328620867,1717620642054,-500.0,0.00029995,4]
[328620868,1717620642063,-500.0,0.00029995,4]
[328620869,1717620642073,-191.52,0.00029995,4]
[328620870,1717620642083,-549.11557139,0.00029995,4]
[328620871,1717620642091,-505.57181642,0.00029995,4]
[328620872,1717620642101,-500.0,0.00029995,4]
[328620873,1717620642110,-500.0,0.00029995,4]
[328620874,1717620642119,-500.0,0.00029995,4]
[328620875,1717620642128,-500.0,0.00029995,4]
[328620876,1717620642138,-500.0,0.00029995,4]
[328620877,1717620642146,-500.0,0.00029995,4]
[328620878,1717620642156,-500.0,0.00029995,4]
[328620879,1717620642165,-500.0,0.00029995,4]
[328620880,1717620642174,-500.0,0.00029995,4]
[328620881,1717620642183,-630.86,0.00029995,4]
[328620882,1717620642192,-505.55988132,0.00029995,4]
[328620883,1717620642202,-505.80080579,0.00029995,4]
[328620884,1717620642212,-500.0,0.00029995,4]
[328620885,1717620642222,-500.0,0.00029995,4]
[328620886,1717620642231,-500.0,0.00029995,4]
[328620887,1717620642241,-500.0,0.00029995,4]
[328620888,1717620642250,-500.0,0.00029995,4]
[328620889,1717620642260,-505.41641919,0.00029995,4]
[328620890,1717620642269,-500.0,0.00029995,4]
[328620891,1717620642278,-500.0,0.00029995,4]
[328620892,1717620642287,-500.0,0.00029995,4]
[328620893,1717620642296,-500.0,0.00029995,4]
[328620894,1717620642305,-500.0,0.00029995,4]
[328620895,1717620642314,-500.0,0.00029995,4]
[328620896,1717620642324,-500.0,0.00029995,4]
[328620897,1717620642333,-500.0,0.00029995,4]
[328620898,1717620642342,-500.0,0.00029995,4]
[328620899,1717620642351,-500.0,0.00029995,4]
[328620900,1717620642360,-641.09,0.00029995,4]
[328620901,1717620642369,-198.72,0.00029995,4]
[328620902,1717620642379,-265.69,0.00029995,4]
[328620903,1717620642388,-197.66,0.00029995,4]
[328620904,1717620642398,-500.0,0.00029995,4]
[328620905,1717620642407,-500.0,0.00029995,4]
[328620906,1717620642416,-500.0,0.00029995,4]
[328620908,1717620642425,-500.0,0.00029995,4]
[328620909,1717620642434,-326.27,0.00029995,4]
[328620910,1717620642443,-353.63,0.00029995,4]
[328620911,1717620642452,-534.33,0.00029995,4]
[328620912,1717620642461,-500.0,0.00029995,4]
[328620913,1717620642471,-500.0,0.00029995,4]
[328620914,1717620642480,-210.18,0.00029995,4]
[328620915,1717620642490,-1193.22,0.00029995,4]
[328620916,1717620642500,-500.0,0.00029995,4]
[328620917,1717620642509,-500.0,0.00029995,4]
[328620918,1717620642518,-227.04,0.00029995,4]
[328620919,1717620642528,-500.0,0.00029995,4]
[328620920,1717620642538,-811.95,0.00029995,4]
[328620921,1717620642547,-811.95,0.00029995,4]
[328620922,1717620642556,-500.0,0.00029995,4]
[328620923,1717620642565,-613.73,0.00029995,4]
[328620924,1717620642575,-500.0,0.00029995,4]
[328620926,1717620642584,-575.25305621,0.00029995,4]
[328620928,1717620642593,-500.0,0.00029995,4]
[328620930,1717620642602,-605.56,0.00029995,4]
[328620932,1717620642611,-811.14,0.00029995,4]
[328620934,1717620642621,-811.14,0.00029995,4]
[328620936,1717620642630,-500.0,0.00029995,4]
[328620937,1717620642639,-500.0,0.00029995,4]
[328620939,1717620642648,-637.66,0.00029995,4]
[328620941,1717620642658,-500.0,0.00029995,4]
[328620943,1717620642667,-500.0,0.00029995,4]
[328620945,1717620642676,-188.24,0.00029995,4]
[328620947,1717620642686,-1239.73,0.00029995,4]
[328620949,1717620642695,-1239.73,0.00029995,4]
[328620951,1717620642704,-636.91,0.00029995,4]
[328620953,1717620642713,-500.0,0.00029995,4]
[328620955,1717620642722,-500.0,0.00029995,4]
[328620957,1717620642731,-500.0,0.00029995,4]
[328620959,1717620642740,-500.0,0.00029995,4]
[328620961,1717620642750,-500.0,0.00029995,4]
[328620964,1717620642760,-500.0,0.00029995,4]
[328620967,1717620642769,-1985.87,0.00029995,4]
[328620970,1717620642779,-334.16,0.00029995,4]
[328620973,1717620642788,-508.89270855,0.00029995,4]
[328620975,1717620642797,-549.19,0.00029995,4]
[328620978,1717620642807,-168.25,0.00029995,4]
[328620981,1717620642816,-500.0,0.00029995,4]
[328620984,1717620642825,-500.0,0.00029995,4]
[328620987,1717620642836,-500.0,0.00029995,4]
[328620988,1717620642847,-500.0,0.00029995,4]
[328620990,1717620642857,-500.0,0.00029995,4]
[328620992,1717620642866,-500.0,0.00029995,4]
[328620994,1717620642877,-500.0,0.00029995,4]
[328620996,1717620642886,-500.0,0.00029995,4]
[328620998,1717620642895,-500.0,0.00029995,4]
[328621000,1717620642905,-500.0,0.00029995,4]
[328621001,1717620642917,-500.0,0.00029995,7]
[328621003,1717620642926,-490.90511159,0.00029995,7]
[328621004,1717620642935,-500.0,0.00029995,4]
[328621006,1717620642944,-500.0,0.00029995,4]
[328621007,1717620642953,-500.0,0.00029995,4]
[328621009,1717620642962,-500.0,0.00029995,4]
[328621010,1717620642971,-500.0,0.00029995,4]
[328621011,1717620642980,-544.79,0.00029995,4]
[328621013,1717620642989,-500.0,0.00029995,4]
[328621015,1717620642998,-288.96,0.00029995,4]
[328621016,1717620643007,-500.0,0.00029995,4]
[328621018,1717620643016,-251.56,0.00029995,4]
[328621019,1717620643026,-500.0,0.00029995,4]
[328621021,1717620643043,-500.0,0.00029995,4]
[328621023,1717620643055,-500.0,0.00029995,4]
[328621025,1717620643064,-808.3,0.00029995,4]
[328621027,1717620643074,-500.0,0.00029995,4]
[328621029,1717620643084,-500.0,0.00029995,4]
[328621030,1717620643094,-500.0,0.00029995,4]
[328621032,1717620643104,-500.0,0.00029995,4]
[328621034,1717620643114,-500.0,0.00029995,4]
[328621036,1717620643123,-500.0,0.00029995,4]
[328621037,1717620643133,-500.0,0.00029995,4]
[328621039,1717620643143,-500.0,0.00029995,4]
[328621041,1717620643153,-500.0,0.00029995,4]
[328621043,1717620643163,-500.0,0.00029995,4]
[328621044,1717620643172,-547.17804526,0.00029995,4]
[328621046,1717620643182,-500.0,0.00029995,4]
[328621048,1717620643192,-529.60284169,0.00029995,4]
[328621049,1717620643201,-600.94,0.00029995,4]
[328621051,1717620643210,-500.0,0.00029995,4]
[328621053,1717620643220,-500.0,0.00029995,4]
[328621055,1717620643230,-100550.36463049,0.00029996,2]
[328621057,1717620643239,-500.0,0.00029996,4]
[328621058,1717620643249,-500.0,0.00029996,4]
[328621060,1717620643258,-151.0,0.00029996,7]
[328621062,1717620643268,-151.0,0.00029996,7]
[328621064,1717620643278,-2799.44,0.00029996,4]
[328621065,1717620643288,-151.0,0.00029996,7]
[328621067,1717620643297,-151.0,0.00029996,7]
[328621069,1717620643307,-151.0,0.00029996,7]
[328621070,1717620643316,-151.0,0.00029996,7]
[328621072,1717620643325,-151.0,0.00029996,7]
[328621074,1717620643334,-450.71,0.00029996,4]
[328621076,1717620643343,-151.0,0.00029996,7]
[328621078,1717620643353,-1037.22,0.00029996,4]
[328621079,1717620643362,-150.01,0.00029997,2]
[328621081,1717620643371,-5889.05435153,0.00029997,2]
[328621083,1717620643381,-340.78,0.00029997,4]
[328621085,1717620643391,-194.56,0.00029997,4]
[328621087,1717620643401,-291.58,0.00029997,4]
[328621088,1717620643412,-309.13,0.00029997,4]
[328621089,1717620643421,-225.41,0.00029997,4]
[328621090,1717620643430,-174.31,0.00029997,4]
[328621091,1717620643441,-324.54,0.00029997,4]
[328621092,1717620643450,-232.01,0.00029997,4]
[328621093,1717620643460,-482.46,0.00029997,4]
[328621095,1717620643470,-219.68,0.00029997,4]
[328621097,1717620643479,-279.41,0.00029997,4]
[328621099,1717620643489,-156.98,0.00029997,4]
[328621101,1717620643499,-326.98,0.00029997,4]
[328621103,1717620643509,-214.17,0.00029997,4]
[328621105,1717620643518,-282.77,0.00029997,4]
[328621107,1717620643528,-254.54465214,0.00029997,4]
[328621109,1717620643537,-196.31,0.00029997,4]
[328621111,1717620643547,-281.07,0.00029997,4]
[328621112,1717620643556,-479.32,0.00029997,4]
[328621115,1717620643566,-457.59,0.00029997,4]
[328621116,1717620643575,-184.12,0.00029997,4]
[328621117,1717620643585,-500.0,0.00029997,4]
[328621118,1717620643594,-500.0,0.00029997,4]
[328621119,1717620643604,-500.0,0.00029997,4]
[328621120,1717620643613,-500.0,0.00029997,4]
[328621121,1717620643623,-500.0,0.00029997,4]
[328621122,1717620643632,-232.69,0.00029997,4]
[328621123,1717620643642,-259.68,0.00029997,4]
[328621124,1717620643651,-340.42,0.00029997,4]
[328621125,1717620643660,-362.88,0.00029997,2]
[328621126,1717620643669,-353.16,0.00029997,4]
[328621127,1717620643678,-435.22,0.00029997,4]
[328621128,1717620643687,-47.08328849,0.00029997,4]
[328621129,1717620643719,-151.0,0.00029996,7]
[328621130,1717620643728,-174.07671151,0.00029997,4]
[328621131,1717620643737,-500.0,0.00029997,4]
[328621132,1717620643746,-235.21,0.00029997,4]
[328621133,1717620643755,-330.27,0.00029997,4]
[328621134,1717620643764,-176.66,0.00029997,4]
[328621135,1717620643774,-454.48,0.00029997,4]
[328621136,1717620643784,-212.95,0.00029997,4]
[328621137,1717620643793,-291.11,0.00029997,4]
[328621138,1717620643803,-447.48,0.00029997,4]
[328621139,1717620643811,-274.64,0.00029997,4]
[328621140,1717620643820,-231.96,0.00029997,4]
[328621141,1717620643830,-273.99,0.00029997,4]
[328621142,1717620643842,-227.65,0.00029997,4]
[328621143,1717620643851,-500.0,0.00029997,4]
[328621144,1717620643860,-500.0,0.00029997,4]
[328621145,1717620643870,-500.0,0.00029997,4]
[328621146,1717620643881,-500.0,0.00029997,4]
[328621147,1717620643890,-155.90342501,0.00029998,2]
[328621148,1717620643900,-980.0,0.00029998,2]
[328621149,1717620643909,-353.96696625,0.00029998,10]
[328621150,1717620643920,-2691.61369857,0.00029998,2]
[328621151,1717620643930,-155.0,0.00029998,2]
[328621152,1717620643939,-325.39983263,0.00029998,2]
[328621153,1717620643948,-5572.40323607,0.00029998,2]
[328621154,1717620643958,-6781.62469365,0.00029998,2]
[328621155,1717620643967,-298.55892673,0.00029998,2]
[328621156,1717620643977,-634.50759008,0.00029998,2]
[328621157,1717620643986,-2050.98113024,0.00029998,2]
[328621158,1717620643995,-1143.95954077,0.00029998,2]
[328621159,1717620644005,-155.0,0.00029998,2]
[328621160,1717620644014,-1776.43097931,0.00029998,2]
[328621161,1717620644023,-2003.2277311,0.00029998,2]
[328621162,1717620644034,-163.47488307,0.00029998,2]
[328621163,1717620644043,-791.8094853,0.00029998,2]
[328621164,1717620644052,-1335.70611775,0.00029998,2]
[328621165,1717620644061,-1263.60467188,0.00029998,2]
[328621166,1717620644071,-529.35848337,0.00029998,2]